bitfinex-derivatives/quotes_BNBF0:USTF0_20241231
["timestamp","ask_amount","ask_price","bid_price","bid_amount"]
[1735643605290,1.48104539,705.62,704.57,0.28386107]
[1735643606190,1.0608876,705.61,704.57,0.28386107]
[1735643608290,1.0608876,705.56,704.57,0.28386107]
[1735643609192,1.0608876,705.55,704.57,0.28386107]
[1735643610090,1.0608876,705.59,704.57,0.28386107]
[1735643611994,1.48104539,705.62,704.57,0.28386107]
[1735643623805,1.0608876,705.58,704.57,0.28386107]
[1735643624600,1.48104539,705.62,704.57,0.28386107]
[1735643624601,1.0608876,705.59,704.57,0.28386107]
[1735643625807,1.0608876,705.56,704.57,0.28386107]
[1735643627205,1.0608876,705.53,704.57,0.28386107]
[1735643627803,1.4810769,705.52,704.57,0.28386107]
[1735643642624,1.0608876,705.48,704.57,0.28386107]
[1735643643716,1.0608876,705.47,704.57,0.28386107]
[1735643644723,1.0608876,705.49,704.57,0.28386107]
[1735643647623,1.4810769,705.52,704.57,0.28386107]
[1735643661827,1.4810769,705.52,704.06,1.060836]
[1735643662026,1.4810769,705.52,704.07,0.28406266]
[1735643662832,1.4810769,705.52,704.2,1.060836]
[1735643662833,2.5419645,705.52,704.2,1.060836]
[1735643663733,1.0608876,705.38,704.21,1.060836]
[1735643664331,1.48126077,705.37,704.21,1.060836]
[1735643664727,1.48126077,705.37,704.22,1.060836]
[1735643665529,1.48126077,705.37,704.27,1.060836]
[1735643666129,1.0608876,705.41,704.27,1.060836]
[1735643666531,1.0608876,705.43,704.22,1.060836]
[1735643667336,1.0608876,705.43,704.23,0.28399812]
[1735643667534,1.0608876,705.47,704.23,0.28399812]
[1735643668333,2.54202754,705.48,704.23,0.28399812]
[1735643670337,1.48113994,705.48,704.23,0.28399812]
[1735643671541,1.48113994,705.48,704.25,1.060836]
[1735643672140,1.48113994,705.48,704.26,0.28398602]
[1735643672440,1.48113994,705.48,704.26,1.34482202]
[1735643673439,1.48113994,705.48,704.31,1.060836]
[1735643674644,1.48113994,705.48,704.32,1.060836]
[1735643676540,1.48113994,705.48,704.37,1.060836]
[1735643677746,1.0608876,705.47,704.32,1.060836]
[1735643678851,1.0608876,705.46,704.35,1.060836]
[1735643679650,1.0608876,705.44,704.33,1.060836]
[1735643680642,1.0608876,705.45,704.34,1.060836]
[1735643681650,1.0608876,705.45,704.35,1.060836]
[1735643683744,1.0608876,705.46,704.35,1.060836]
[1735643684952,1.0608876,705.44,704.34,1.060836]
[1735643685653,2.54202754,705.48,704.3,1.060836]
[1735643686551,1.48113994,705.48,704.27,1.060836]
[1735643687355,1.48113994,705.48,704.26,1.34482202]
[1735643689355,1.48113994,705.48,704.28,1.060836]
[1735643690462,1.48113994,705.48,704.3,1.060836]
[1735643691653,1.48113994,705.48,704.39,1.060836]
[1735643692556,1.48113994,705.48,704.38,1.060836]
[1735643693852,1.48113994,705.48,704.42,1.060836]
[1735643694861,1.48113994,705.48,704.38,1.060836]
[1735643696164,1.48113994,705.48,704.37,1.060836]
[1735643697463,1.48113994,705.48,704.32,1.060836]
[1735643698662,1.48113994,705.48,704.33,1.060836]
[1735643699765,1.48113994,705.48,704.32,1.060836]
[1735643700866,1.48113994,705.48,704.33,0.2839578]
[1735643701365,1.0608876,705.65,704.33,0.2839578]
[1735643701568,1.48101387,705.55,704.33,0.2839578]
[1735643701759,1.0608876,705.63,704.33,0.2839578]
[1735643701960,1.48098236,705.55,704.33,0.2839578]
[1735643709074,1.48098236,705.55,704.33,1.3447938]
[1735643710369,1.48098236,705.55,704.34,1.060836]
[1735643711270,1.48098236,705.55,704.39,1.060836]
[1735643712374,1.48098236,705.55,704.38,1.060836]
[1735643715075,1.48098236,705.55,704.4,1.060836]
[1735643715977,1.48098236,705.55,704.33,0.2839578]
[1735643715978,1.0608876,705.54,704.41,1.060836]
[1735643717178,1.0608876,705.53,704.42,1.060836]
[1735643719378,1.48098236,705.55,704.33,0.2839578]
[1735643723382,1.48098236,705.55,704.33,1.3447938]
[1735643724780,1.48098236,705.55,704.33,0.2839578]
[1735643726287,1.48098236,705.55,704.33,1.3447938]
[1735643728279,1.0608876,705.57,704.33,1.3447938]
[1735643729185,1.0608876,705.53,704.49,1.060836]
[1735643730281,1.0608876,705.6,704.56,1.060836]
[1735643731285,1.48084581,705.64,704.38,1.060836]
[1735643731986,1.48084581,705.64,704.39,0.28393361]
[1735643737583,2.54173341,705.64,704.39,0.28393361]
[1735643738292,1.48084581,705.64,704.39,0.28393361]
[1735643739183,2.54173341,705.64,704.39,0.28393361]
[1735643740990,1.0608876,705.55,704.45,1.060836]
[1735643741892,1.48084581,705.64,704.5,1.060836]
[1735643741893,1.0608876,705.57,704.5,1.060836]
[1735643742688,1.0608876,705.56,704.49,1.060836]
[1735643743996,1.48084581,705.64,704.39,0.28393361]
[1735643754603,2.54173341,705.64,704.39,0.28393361]
[1735643756898,1.0608876,705.56,704.42,1.060836]
[1735643757497,1.48096135,705.55,704.42,1.060836]
[1735643757999,1.48096135,705.55,704.39,0.28393361]
[1735643769212,2.54184895,705.55,704.39,0.28393361]
[1735643770512,1.0608876,705.54,704.39,0.28393361]
[1735643772214,1.0608876,705.52,704.39,0.28393361]
[1735643774113,1.48096135,705.55,704.39,0.28393361]
[1735643781822,2.54184895,705.55,704.39,0.28393361]
[1735643783620,1.0608876,705.5,704.39,0.28393361]
[1735643784618,1.0608876,705.49,704.39,0.28393361]
[1735643785420,1.0608876,705.43,704.39,0.28393361]
[1735643786120,1.48116095,705.42,704.39,0.28393361]
[1735643786325,1.0608876,705.43,704.39,0.28393361]
[1735643786526,1.48111367,705.46,704.39,0.28393361]
[1735643790322,1.0608876,705.45,704.39,0.28393361]
[1735643791328,1.48111367,705.46,704.39,0.28393361]
[1735643791329,1.0608876,705.44,704.39,0.28393361]
[1735643792430,1.0608876,705.43,704.39,0.28393361]
[1735643793331,2.54200127,705.46,704.39,0.28393361]
[1735643794127,1.48111367,705.46,704.39,0.28393361]
[1735643795134,1.0608876,705.63,704.39,0.28393361]
[1735643795329,0.28343867,705.62,704.39,0.28393361]
[1735643796332,1.0608876,705.6,704.39,0.28393361]
[1735643796532,0.28345072,705.59,704.39,0.28393361]
[1735643804638,1.48137112,705.58,704.39,0.28393361]
[1735643804839,1.76482586,705.58,704.39,0.28393361]
[1735643805039,1.0608876,705.56,704.39,0.28393361]
[1735643806541,1.0608876,705.55,704.39,0.28393361]
[1735643807639,1.0608876,705.54,704.39,0.28393361]
[1735643808543,1.0608876,705.52,704.39,0.28393361]
[1735643809543,1.0608876,705.51,704.39,0.28393361]
[1735643810838,1.0608876,705.5,704.39,0.28393361]
[1735643811545,1.0608876,705.51,704.39,0.28393361]
[1735643812637,1.0608876,705.5,704.39,0.28393361]
[1735643814345,1.0608876,705.47,704.39,0.28393361]
[1735643814942,1.48125552,705.46,704.39,0.28393361]
[1735643815140,1.0608876,705.43,704.39,0.28393361]
[1735643816342,1.0608876,705.44,704.39,0.28393361]
[1735643817147,1.0608876,705.43,704.39,0.28393361]
[1735643818247,1.48125552,705.46,704.39,0.28393361]
[1735643818248,1.0608876,705.41,704.39,0.28393361]
[1735643819138,1.48125552,705.46,704.39,0.28393361]
[1735643839860,1.0608876,705.45,704.39,0.28393361]
[1735643840957,1.48125552,705.46,704.39,0.28393361]
[1735643841761,2.54214312,705.46,704.39,0.28393361]
[1735643842661,1.0608876,705.45,704.39,0.28393361]
[1735643843858,1.0608876,705.42,704.39,0.28393361]
[1735643844763,1.48125552,705.46,704.39,0.28393361]
[1735643863072,1.0608876,705.45,704.39,0.28393361]
[1735643863671,0.283511,705.44,703.94,1.060836]
[1735643864171,0.283511,705.44,703.66,1.060836]
[1735643864373,0.283511,705.44,703.68,0.2842201]
[1735643870673,1.0608876,705.38,703.72,1.060836]
[1735643871176,0.28353913,705.37,703.73,0.2841999]
[1735643871376,1.76534128,705.37,703.73,0.2841999]
[1735643873080,1.76534128,705.37,703.76,1.060836]
[1735643873281,1.76534128,705.37,703.77,0.28418375]
[1735643873875,1.76534128,705.37,703.77,1.34501975]
[1735643875784,1.76534128,705.37,703.77,0.28418375]
[1735643876785,1.76534128,705.37,703.88,1.060836]
[1735643877377,0.26103091,705.36,703.88,1.060836]
[1735643877583,0.28354717,705.35,703.88,1.060836]
[1735643878678,0.28354717,705.35,703.95,1.060836]
[1735643879579,0.26102835,705.34,703.95,1.060836]
[1735643879790,0.28354717,705.35,703.95,1.060836]
[1735643880482,0.26103684,705.34,703.95,1.060836]
[1735643880880,0.28355521,705.33,703.95,1.060836]
[1735643881486,0.28355521,705.33,703.82,1.060836]
[1735643881487,1.0608876,705.28,703.82,1.060836]
[1735643881680,0.28357933,705.27,703.82,1.060836]
[1735643882187,1.4818968,705.26,703.82,0.28416356]
[1735643883488,1.76548015,705.26,703.82,0.28416356]
[1735643900197,2.82636775,705.26,703.82,0.28416356]
[1735643901495,1.0608876,705.2,703.88,1.060836]
[1735643902099,1.0608876,705.2,703.89,1.060836]
[1735643903102,1.76548015,705.26,703.82,0.28416356]
[1735643903103,1.0608876,705.19,703.92,1.060836]
[1735643903699,1.48185999,705.18,703.92,1.060836]
[1735643904394,2.54274759,705.18,703.92,1.060836]
[1735643905594,2.54274759,705.18,703.82,0.28416356]
[1735643905595,1.0608876,705.1,703.99,1.060836]
[1735643906502,1.48185999,705.18,703.82,0.28416356]
[1735643911512,1.48185999,705.18,703.82,1.34499956]
[1735643912409,1.48185999,705.18,703.83,1.060836]
[1735643912605,1.48185999,705.18,703.84,0.28415548]
[1735643914110,1.48185999,705.18,703.91,1.060836]
[1735643914906,1.48185999,705.18,703.95,1.060836]
[1735643916015,1.48185999,705.18,703.94,1.060836]
[1735643918515,1.0608876,705.13,703.88,1.060836]
[1735643919312,1.48185999,705.18,703.84,0.28415548]
[1735643921317,1.0608876,705.17,703.87,1.060836]
[1735643923317,1.0608876,705.16,703.87,1.060836]
[1735643924418,1.48185999,705.18,703.84,0.28415548]
[1735643924419,1.48185999,705.18,703.84,1.34499148]
[1735643925415,1.48185999,705.18,703.86,1.060836]
[1735643926417,1.48185999,705.18,703.87,1.060836]
[1735643928521,1.48185999,705.18,703.88,1.060836]
[1735643929623,1.0608876,705.17,703.94,1.060836]
[1735643930727,1.48185999,705.18,703.9,1.060836]
[1735643932226,1.48185999,705.18,703.91,1.060836]
[1735643933218,1.0608876,705.16,703.87,1.060836]
[1735643934225,1.0608876,705.14,703.9,1.060836]
[1735643934921,1.0608876,705.15,703.9,1.060836]
[1735643936027,1.0608876,705.14,703.9,1.060836]
[1735643937829,1.0608876,705.15,703.9,1.060836]
[1735643938827,1.0608876,705.14,703.93,1.060836]
[1735643939931,2.54274759,705.18,703.88,1.060836]
[1735643940431,2.54274759,705.18,703.84,0.28415548]
[1735643940432,1.0608876,705.17,703.87,1.060836]
[1735643941829,1.48185999,705.18,703.92,1.060836]
[1735643942833,1.48185999,705.18,703.91,1.060836]
[1735643943634,1.48185999,705.18,703.92,1.060836]
[1735643945633,1.48185999,705.18,703.93,1.060836]
[1735643946330,1.48185999,705.18,703.94,1.060836]
[1735643947436,1.48185999,705.18,703.84,0.28415548]
[1735643953540,1.48185999,705.18,703.87,1.060836]
[1735643953741,1.48185999,705.18,703.88,0.28413934]
[1735643982266,2.54274759,705.18,704.05,1.060836]
[1735643983477,1.48185999,705.18,704.03,1.060836]
[1735643984365,1.48185999,705.18,704.04,1.060836]
[1735643986360,1.48185999,705.18,704.06,1.060836]
[1735643987364,1.48185999,705.18,704.05,1.060836]
[1735643988169,1.48185999,705.18,704.12,1.060836]
[1735643990170,1.48185999,705.18,704.14,1.060836]
[1735643993667,1.0608876,705.13,704.09,1.060836]
[1735643994967,1.0608876,705.14,704.09,1.060836]
[1735643995769,1.0608876,705.16,704.11,1.060836]
[1735643996667,1.0608876,705.14,704.1,1.060836]
[1735643997569,1.0608876,705.14,704.07,1.060836]
[1735643998769,1.0608876,705.11,704.04,1.060836]
[1735643999464,1.48177586,705.1,704.04,1.060836]
[1735643999967,2.54266346,705.1,704.02,1.060836]
[1735644000867,1.48177586,705.1,704.07,1.060836]
[1735644001367,1.0608876,705.15,704.07,1.060836]
[1735644001569,1.48182844,705.09,704.07,1.060836]
[1735644002171,1.48182844,705.09,704.02,1.060836]
[1735644003169,1.48182844,705.09,704.04,1.060836]
[1735644004173,1.48182844,705.09,704.03,1.060836]
[1735644005071,1.48182844,705.09,704.04,1.060836]
[1735644006169,1.48182844,705.09,704.02,1.060836]
[1735644007274,1.48182844,705.09,704.04,1.060836]
[1735644008375,1.0608876,705.16,704.05,1.060836]
[1735644009174,1.48170225,705.22,704.05,1.060836]
[1735644010076,1.48170225,705.22,704.03,1.060836]
[1735644010874,1.48170225,705.22,704.02,1.060836]
[1735644011677,1.48170225,705.22,704.01,1.060836]
[1735644013174,1.48170225,705.22,704.02,1.060836]
[1735644015173,1.48170225,705.22,704.0,1.060836]
[1735644016379,1.48170225,705.22,704.01,1.060836]
[1735644017376,1.48170225,705.22,704.09,1.060836]
[1735644018778,1.48170225,705.22,704.08,1.060836]
[1735644019677,1.48170225,705.22,704.0,1.060836]
[1735644019875,1.48170225,705.22,704.01,0.28408687]
[1735644030088,1.48170225,705.22,704.05,1.060836]
[1735644030992,1.48170225,705.22,704.11,1.060836]
[1735644033088,1.48170225,705.22,704.14,1.060836]
[1735644035687,1.48170225,705.22,704.16,1.060836]
[1735644037993,1.48170225,705.22,704.18,1.060836]
[1735644038896,1.48170225,705.22,704.12,1.060836]
[1735644039895,1.48170225,705.22,704.01,0.28408687]
[1735644039896,1.48170225,705.22,704.03,1.060836]
[1735644041092,1.48170225,705.22,704.04,1.060836]
[1735644042196,1.48170225,705.22,704.09,1.060836]
[1735644043501,1.48170225,705.22,704.07,1.060836]
[1735644044398,1.48170225,705.22,704.06,1.060836]
[1735644045499,1.48170225,705.22,704.08,1.060836]
[1735644046497,2.54258985,705.22,704.05,1.060836]
[1735644047399,1.48170225,705.22,704.07,1.060836]
[1735644048397,1.48170225,705.22,704.08,1.060836]
[1735644049298,1.0608876,705.19,704.13,1.060836]
[1735644052209,1.48170225,705.22,704.14,1.060836]
[1735644052210,1.0608876,705.2,704.14,1.060836]
[1735644052610,1.0608876,705.19,704.13,1.060836]
[1735644053810,1.48170225,705.22,704.17,1.060836]
[1735644056608,1.48170225,705.22,704.16,1.060836]
[1735644059012,1.48170225,705.22,704.15,1.060836]
[1735644060318,1.48170225,705.22,704.09,1.060836]
[1735644061014,1.0608876,705.13,704.01,0.28408687]
[1735644061611,1.48191783,705.12,704.01,0.28408687]
[1735644073918,0.28358335,705.26,704.01,0.28408687]
[1735644074418,1.48184947,705.23,704.01,0.28408687]
[1735644084728,1.48184947,705.23,704.02,1.060836]
[1735644084925,1.48184947,705.23,704.02,1.34491883]
[1735644085724,1.48184947,705.23,704.03,1.060836]
[1735644086924,1.48184947,705.23,704.05,1.060836]
[1735644088128,1.48184947,705.23,704.04,1.060836]
[1735644088931,1.48184947,705.23,704.04,2.29708359]
[1735644089128,1.48184947,705.23,704.05,1.060836]
[1735644090028,1.48184947,705.23,704.04,1.060836]
[1735644090626,1.48184947,705.23,704.04,6.10158781]
[1735644090831,1.48184947,705.23,704.05,5.04075181]
[1735644091030,1.48184947,705.23,704.09,1.060836]
[1735644091931,1.48184947,705.23,704.09,1.23624759]
[1735644092132,1.48184947,705.23,704.09,3.66940594]
[1735644092334,1.48184947,705.23,704.08,1.060836]
[1735644092735,1.48184947,705.23,704.07,1.060836]
[1735644093328,1.48184947,705.23,704.07,3.49399435]
[1735644093634,1.48184947,705.23,704.08,1.060836]
[1735644094636,1.48184947,705.23,704.02,0.28408283]
[1735644104848,0.28358335,705.26,704.02,0.28408283]
[1735644105249,0.28358335,705.26,704.03,1.060836]
[1735644105445,0.28358335,705.26,704.04,0.28407476]
[1735644105846,1.0608876,705.43,704.04,0.28407476]
[1735644106245,1.48132383,705.47,704.04,0.28407476]
[1735644107350,1.48132383,705.47,704.2,1.060836]
[1735644109049,1.48132383,705.47,704.18,1.060836]
[1735644110153,1.48132383,705.47,704.04,0.28407476]
[1735644110154,1.48132383,705.47,704.13,1.060836]
[1735644111350,1.48132383,705.47,704.1,1.060836]
[1735644112455,1.48132383,705.47,704.11,1.060836]
[1735644113454,1.48132383,705.47,704.07,1.060836]
[1735644114251,1.0608876,705.85,704.07,1.060836]
[1735644114449,1.48115045,705.5,704.07,1.060836]
[1735644114650,0.28335033,705.84,704.04,1.34491076]
[1735644114855,1.48113469,705.5,704.04,1.34491076]
[1735644115155,0.28335033,705.84,704.04,1.34491076]
[1735644115353,1.48115045,705.5,704.04,0.28407476]
[1735644115749,0.28335033,705.84,704.04,0.28407476]
[1735644116051,1.48116621,705.5,704.04,0.28407476]
[1735644116252,0.28335033,705.84,704.04,0.28407476]
[1735644116453,1.74186259,705.83,704.04,0.28407476]
[1735644116653,0.54423859,705.82,704.04,0.28407476]
[1735644116852,0.26088023,705.81,704.04,0.28407476]
[1735644117054,0.28336639,705.8,704.04,0.28407476]
[1735644117252,0.28336639,705.8,704.06,1.060836]
[1735644117455,0.28336639,705.8,704.08,0.28405862]
[1735644117652,0.26088122,705.79,704.08,0.28405862]
[1735644117851,0.28337442,705.78,704.08,0.28405862]
[1735644119057,0.26088605,705.77,704.08,0.28405862]
[1735644119256,0.28338245,705.76,704.08,0.28405862]
[1735644126657,1.48099286,705.75,704.08,0.28405862]
[1735644134562,1.48099286,705.75,704.09,1.060836]
[1735644134767,1.48099286,705.75,704.11,0.28404652]
[1735644136482,1.48099286,705.75,704.12,1.060836]
[1735644136767,1.48099286,705.75,704.14,0.28403442]
[1735644137670,1.48099286,705.75,704.16,1.060836]
[1735644137868,1.48099286,705.75,704.18,0.28401829]
[1735644139766,1.0608876,705.74,704.26,1.060836]
[1735644139964,1.0608876,705.74,704.27,0.28398199]
[1735644140869,1.0608876,705.69,704.34,1.060836]
[1735644141067,1.0608876,705.69,704.35,0.28394974]
[1735644141569,1.0608876,705.64,704.4,1.060836]
[1735644142172,2.5416284,705.64,704.41,0.28392555]
[1735644142873,1.4807408,705.64,704.41,0.28392555]
[1735644158578,1.0608876,705.55,704.41,0.28392555]
[1735644159282,1.48105064,705.54,704.41,0.28392555]
[1735644160682,1.0608876,705.58,704.41,0.28392555]
[1735644160877,1.48094034,705.55,704.41,0.28392555]
[1735644165478,1.48094034,705.55,704.43,1.060836]
[1735644167484,1.48094034,705.55,704.41,0.28392555]
[1735644167485,1.48094034,705.55,704.42,1.060836]
[1735644168380,1.48094034,705.55,704.43,1.060836]
[1735644170486,1.48094034,705.55,704.42,1.060836]
[1735644171485,1.48094034,705.55,704.41,0.28392555]
[1735644182391,1.0608876,705.64,704.41,0.28392555]
[1735644182991,1.0608876,705.66,704.41,0.28392555]
[1735644183990,1.48079855,705.67,704.46,1.060836]
[1735644184190,1.48079855,705.67,704.47,0.28390137]
[1735644187093,1.48079855,705.67,704.52,1.060836]
[1735644188396,1.48079855,705.67,704.5,1.060836]
[1735644188595,1.48079855,705.67,704.5,1.34472528]
[1735644190192,1.48079855,705.67,704.5,0.28388928]
[1735644196698,0.28338245,705.76,704.5,0.28388928]
[1735644219419,0.28338245,705.76,704.52,1.060836]
[1735644220116,0.28338245,705.76,704.53,0.28387719]
[1735644220521,0.28338245,705.76,704.53,1.34471319]
[1735644222823,0.28338245,705.76,704.55,1.060836]
[1735644223023,0.28338245,705.76,704.56,0.2838651]
[1735644223524,0.28338245,705.76,704.56,1.3447011]
[1735644224723,0.28338245,705.76,704.64,1.060836]
[1735644225722,0.28338245,705.76,704.61,1.060836]
[1735644225919,1.0608876,705.73,704.61,1.34468096]
[1735644227025,1.0608876,705.71,704.62,1.060836]
[1735644228923,0.28338245,705.76,704.61,0.28384496]
[1735644228924,1.0608876,705.7,704.63,1.060836]
[1735644230428,1.0608876,705.69,704.64,1.060836]
[1735644231528,0.28338245,705.76,704.65,1.060836]
[1735644231529,1.0608876,705.68,704.65,1.060836]
[1735644232823,1.0608876,705.68,704.69,1.060836]
[1735644233824,1.0608876,705.68,704.7,1.060836]
[1735644235124,0.28338245,705.76,704.69,1.060836]
[1735644235125,1.0608876,705.67,704.69,1.060836]
[1735644236025,1.0608876,705.67,704.65,1.060836]
[1735644238531,1.0608876,705.67,704.64,1.060836]
[1735644239229,1.0608876,705.67,704.65,1.060836]
[1735644240337,1.0608876,705.68,704.65,1.060836]
[1735644241337,1.0608876,705.65,704.63,1.060836]
[1735644243732,0.28338245,705.76,704.63,1.060836]
[1735644243733,1.0608876,705.66,704.63,1.060836]
[1735644245642,0.28338245,705.76,704.61,0.28384496]
[1735644245643,1.0608876,705.69,704.61,0.28384496]
[1735644250042,1.0608876,705.7,704.61,0.28384496]
[1735644251040,1.0608876,705.69,704.61,0.28384496]
[1735644252238,0.28338245,705.76,704.61,0.28384496]
[1735644252239,1.0608876,705.67,704.61,0.28384496]
[1735644253141,1.0608876,705.66,704.61,0.28384496]
[1735644254339,1.0608876,705.67,704.61,0.28384496]
[1735644255245,1.0608876,705.66,704.61,0.28384496]
[1735644256045,1.0608876,705.65,704.61,0.28384496]
[1735644256844,1.0608876,705.67,704.63,1.060836]
[1735644258346,1.0608876,705.66,704.62,1.060836]
[1735644260549,1.0608876,705.66,704.63,1.060836]
[1735644261347,0.28338245,705.76,704.64,1.060836]
[1735644261348,1.0608876,705.67,704.64,1.060836]
[1735644262151,1.0608876,705.67,704.63,1.060836]
[1735644262946,1.0608876,705.67,704.64,1.060836]
[1735644264050,1.0608876,705.64,704.61,1.34468096]
[1735644264848,1.0608876,705.66,704.64,1.060836]
[1735644266053,0.28338245,705.76,704.61,0.28384496]
[1735644294476,1.0608876,705.75,704.61,1.34468096]
[1735644295478,0.28338245,705.76,704.61,0.28384496]
[1735644304181,1.0608876,705.74,704.61,0.28384496]
[1735644304984,1.0608876,705.71,704.64,1.060836]
[1735644306082,1.0608876,705.7,704.65,1.060836]
[1735644306885,1.0608876,705.69,704.65,1.060836]
[1735644308481,1.0608876,705.67,704.68,1.060836]
[1735644309379,1.0608876,705.7,704.69,1.060836]
[1735644311581,0.28338245,705.76,704.61,0.28384496]
[1735644324994,1.0608876,705.71,704.69,1.060836]
[1735644325594,0.28338245,705.76,704.72,1.060836]
[1735644325595,1.0608876,705.7,704.72,1.060836]
[1735644326493,1.0608876,705.7,704.73,1.060836]
[1735644327496,1.0608876,705.7,704.72,1.060836]
[1735644327688,1.0608876,705.69,704.72,1.060836]
[1735644328190,2.54140791,705.69,704.72,1.060836]
[1735644328895,1.48052031,705.69,704.61,0.28384496]
[1735644335495,1.0608876,705.66,704.61,0.28384496]
[1735644337802,1.0608876,705.67,704.61,0.28384496]
[1735644338901,1.0608876,705.68,704.61,0.28384496]
[1735644339803,1.0608876,705.67,704.61,0.28384496]
[1735644340701,2.54140791,705.69,704.61,0.28384496]
[1735644342408,1.48052031,705.69,704.61,0.28384496]
[1735644355611,0.28341859,705.67,704.41,1.060836]
[1735644355817,0.26102618,705.66,704.45,1.060836]
[1735644356117,0.28343064,705.64,704.45,1.060836]
[1735644356311,0.26102618,705.63,704.45,1.060836]
[1735644356511,0.28344269,705.61,704.45,1.060836]
[1735644356715,1.0608876,705.23,703.48,1.060836]
[1735644356915,1.0608876,705.23,703.5,0.28429282]
[1735644357211,1.48208088,705.22,703.5,0.28429282]
[1735644362422,0.28344269,705.61,703.5,0.28429282]
[1735644362619,1.48218082,705.31,703.5,0.28429282]
[1735644363119,1.48212296,705.3,703.5,0.28429282]
[1735644379959,1.48212296,705.3,703.56,1.060836]
[1735644380749,1.48212296,705.3,703.58,0.28426049]
[1735644389240,1.48212296,705.3,703.74,1.060836]
[1735644389542,1.48212296,705.3,703.76,0.28418779]
[1735644390443,1.48212296,705.3,703.8,1.060836]
[1735644390639,1.48212296,705.3,703.82,0.28416356]
[1735644391236,1.48212296,705.3,703.85,1.060836]
[1735644392334,1.48212296,705.3,703.87,0.28414337]
[1735644392538,1.48212296,705.3,703.87,1.34497937]
[1735644393435,1.48212296,705.3,703.92,1.060836]
[1735644394238,1.48212296,705.3,703.94,0.28411512]
[1735644394441,2.54301056,705.3,703.94,0.28411512]
[1735644395540,1.48212296,705.3,703.94,0.28411512]
[1735644404884,1.48212296,705.3,703.94,1.34495112]
[1735644405764,1.48212296,705.3,703.94,0.28411512]
[1735644408775,1.48212296,705.3,703.95,1.060836]
[1735644408968,1.48212296,705.3,703.96,0.28410705]
[1735644412653,1.48212296,705.3,704.02,1.060836]
[1735644412845,1.48212296,705.3,704.03,0.2840788]
[1735644414453,1.48212296,705.3,704.11,1.060836]
[1735644414753,1.48212296,705.3,704.12,0.28404249]
[1735644415453,1.48212296,705.3,704.13,1.060836]
[1735644415649,1.48212296,705.3,704.14,0.28403442]
[1735644416157,1.48212296,705.3,704.15,1.060836]
[1735644416855,1.48212296,705.3,704.17,1.060836]
[1735644418055,1.48212296,705.3,704.15,1.060836]
[1735644418556,1.0608876,705.43,704.15,1.060836]
[1735644418757,1.48131332,705.39,704.15,1.060836]
[1735644419259,1.48131332,705.39,704.22,1.060836]
[1735644420158,1.48131332,705.39,704.16,0.28402635]
[1735644426260,1.0608876,705.3,704.17,1.060836]
[1735644426458,1.0608876,705.3,704.17,1.34485832]
[1735644427157,1.0608876,705.3,704.17,0.28402232]
[1735644428264,1.0608876,705.3,704.17,1.34485832]
[1735644429159,1.0608876,705.33,704.17,0.28402232]
[1735644429964,1.48131332,705.39,704.17,0.28402232]
[1735644429965,1.0608876,705.31,704.19,1.060836]
[1735644430865,1.48131332,705.39,704.17,1.34485832]
[1735644432266,1.48131332,705.39,704.19,1.060836]
[1735644434271,1.48131332,705.39,704.17,0.28402232]
[1735644435669,1.0608876,705.54,704.17,0.28402232]
[1735644435869,1.48125027,705.48,704.17,0.28402232]
[1735644437873,1.0608876,705.58,704.17,0.28402232]
[1735644438073,1.48113994,705.55,704.17,0.28402232]
[1735644444378,1.0608876,705.47,704.17,0.28402232]
[1735644445378,1.0608876,705.45,704.17,0.28402232]
[1735644447275,1.0608876,705.44,704.17,0.28402232]
[1735644448280,1.0608876,705.38,704.17,0.28402232]
[1735644452178,1.48138163,705.43,704.17,0.28402232]
[1735644454382,1.48138163,705.43,704.18,1.060836]
[1735644455383,1.48138163,705.43,704.17,0.28402232]
[1735644460190,2.54226923,705.43,704.17,0.28402232]
[1735644461491,1.48138163,705.43,704.17,0.28402232]
[1735644465592,1.0608876,705.4,704.17,0.28402232]
[1735644466593,1.48138163,705.43,704.17,0.28402232]
[1735644475800,0.28351903,705.42,704.17,0.28402232]
[1735644476997,1.0608876,705.35,704.17,0.28402232]
[1735644477703,1.48170751,705.34,704.17,0.28402232]
[1735644478200,1.0608876,705.32,704.17,0.28402232]
[1735644479001,1.0608876,705.31,704.17,0.28402232]
[1735644480005,1.48170751,705.34,704.17,0.28402232]
[1735644528345,1.0608876,705.33,704.17,0.28402232]
[1735644529347,1.0608876,705.3,704.17,0.28402232]
[1735644530550,1.0608876,705.28,704.17,0.28402232]
[1735644531352,1.0608876,705.26,704.17,0.28402232]
[1735644533647,1.0608876,705.24,704.17,0.28402232]
[1735644534546,1.0608876,705.23,704.17,0.28402232]
[1735644535653,1.0608876,705.21,704.17,0.28402232]
[1735644536953,1.0608876,705.25,704.17,0.28402232]
[1735644537851,1.0608876,705.26,704.17,0.28402232]